[Event "elllobregat Open Chess TnmT- 2nd Edition 2021"]
[Site "Castelldefels, Spain"]
[Date "2021.12.07"]
[Round "8.5"]
[White "Vetoshko, Volodymyr"]
[Black "Ponomariov, Ruslan"]
[Result "1/2-1/2"]
[TimeControl "90min/40moves + 30min/end + 30sec increment per move starting from move 1"]
[WhiteTitle "GM"]
[BlackTitle "GM"]
[WhiteFideId "14122480"]
[BlackFideId "14103320"]
[WhiteElo "2525"]
[BlackElo "2633"]

1. e4 {[%clk 01:26:51]} {[%emt 00:04:08]} c6 {[%clk 01:30:40]} {[%emt
00:00:20]} 2. d4 {[%clk 01:27:16]} {[%emt 00:00:06]} d5 {[%clk 01:31:02]}
{[%emt 00:00:07]} 3. e5 {[%clk 01:26:59]} {[%emt 00:00:48]} Bf5 {[%clk
01:31:14]} {[%emt 00:00:17]} 4. Nd2 {[%clk 01:26:48]} {[%emt 00:00:42]} e6
{[%clk 01:30:06]} {[%emt 00:01:37]} 5. Nb3 {[%clk 01:27:03]} {[%emt 00:00:16]}
Ne7 {[%clk 01:29:14]} {[%emt 00:01:21]} 6. Nf3 {[%clk 01:27:16]} {[%emt
00:00:18]} Nd7 {[%clk 01:27:48]} {[%emt 00:01:56]} 7. Be2 {[%emt 00:04:16]} Nc8
{[%clk 01:21:55]} {[%emt 00:02:20]} 8. a4 {[%clk 01:21:29]} {[%emt 00:06:34]}
Be7 {[%clk 01:09:08]} {[%emt 00:13:15]} 9. O-O {[%clk 01:21:38]} {[%emt
00:00:23]} O-O {[%clk 01:08:07]} {[%emt 00:01:30]} 10. a5 {[%emt 00:06:18]} a6
{[%clk 01:04:07]} {[%emt 00:01:31]} 11. Be3 {[%clk 01:08:56]} {[%emt 00:10:23]}
Na7 {[%emt 00:16:01]} 12. c3 {[%emt 00:09:33]} Qc7 {[%emt 00:06:49]} 13. Rc1
{[%clk 00:44:19]} {[%emt 00:00:31]} c5 {[%emt 00:10:15]} 14. Nxc5 {[%clk
00:33:26]} {[%emt 00:04:11]} Nxc5 {[%clk 00:52:20]} {[%emt 00:03:25]} 15. dxc5
{[%clk 00:33:42]} {[%emt 00:00:14]} Bxc5 {[%clk 00:52:36]} {[%emt 00:00:13]} 16.
Bxc5 {[%clk 00:28:45]} {[%emt 00:05:28]} Qxc5 {[%clk 00:51:41]} {[%emt
00:01:25]} 17. Nd4 {[%emt 00:04:59]} Bg6 {[%emt 00:09:28]} 18. Qb3 {[%emt
00:02:48]} Rab8 {[%emt 00:00:59]} 19. Qb4 {[%emt 00:02:13]} Qc7 {[%emt
00:07:25]} 20. f4 {[%emt 00:01:05]} Nc6 {[%emt 00:01:26]} 21. Qb6 {[%emt
00:00:16]} Rfc8 {[%emt 00:05:16]} 22. Qxc7 {[%clk 00:14:28]} {[%emt 00:00:31]}
Rxc7 {[%clk 00:35:30]} {[%emt 00:00:02]} 23. Nxc6 {[%emt 00:00:55]} Rxc6 {[%emt
00:01:36]} 24. Kf2 {[%emt 00:07:43]} b6 {[%clk 00:27:19]} {[%emt 00:01:08]} 25.
axb6 {[%emt 00:00:12]} Rcxb6 {[%clk 00:27:35]} {[%emt 00:00:08]} 26. b4 {[%clk
00:13:30]} {[%emt 00:00:40]} d4 {[%clk 00:28:01]} {[%emt 00:00:04]} 27. cxd4
{[%clk 00:12:45]} {[%emt 00:01:15]} Rxb4 {[%clk 00:26:55]} {[%emt 00:01:35]} 28.
Bxa6 {[%clk 00:12:38]} {[%emt 00:00:37]} Rxd4 {[%clk 00:27:13]} {[%emt
00:00:12]} 29. Kg1 {[%clk 00:08:46]} {[%emt 00:04:22]} h5 {[%clk 00:25:50]}
{[%emt 00:01:53]} 30. Rc8+ {[%clk 00:06:23]} {[%emt 00:02:53]} Rxc8 {[%clk
00:26:16]} {[%emt 00:00:05]} 31. Bxc8 {[%clk 00:06:52]} {[%emt 00:00:01]} Be4
{[%clk 00:22:22]} {[%emt 00:04:23]} 32. Ba6 {[%clk 00:07:10]} {[%emt 00:00:13]}
h4 {[%clk 00:19:25]} {[%emt 00:03:26]} 33. Be2 {[%clk 00:07:09]} {[%emt
00:00:31]} Bd5 {[%clk 00:19:03]} {[%emt 00:00:53]} 34. g3 {[%clk 00:07:00]}
{[%emt 00:00:40]} Rd2 {[%emt 00:01:27]} 35. Re1 {[%clk 00:05:43]} {[%emt
00:01:02]} hxg3 {[%emt 00:01:12]} 1/2-1/2

[Event "elllobregat Open Chess TnmT- 2nd Edition 2021"]
[Site "Castelldefels, Spain"]
[Date "2021.12.07"]
[Round "8.6"]
[White "Karthikeyan, Murali"]
[Black "Krzyzanowski, Marcin"]
[Result "1-0"]
[TimeControl "90min/40moves + 30min/end + 30sec increment per move starting from move 1"]
[WhiteTitle "GM"]
[BlackTitle "GM"]
[WhiteFideId "5074452"]
[BlackFideId "1132199"]
[WhiteElo "2630"]
[BlackElo "2510"]

1. e4 {[%clk 01:30:58]} {[%emt 00:00:01]} e6 {[%clk 01:30:50]} {[%emt
00:00:08]} 2. d4 {[%clk 01:31:19]} {[%emt 00:00:10]} d5 {[%clk 01:31:16]}
{[%emt 00:00:05]} 3. Nc3 {[%clk 01:31:37]} {[%emt 00:00:12]} dxe4 {[%clk
01:31:30]} {[%emt 00:00:16]} 4. Nxe4 {[%clk 01:31:59]} {[%emt 00:00:08]} Bd7
{[%emt 00:00:43]} 5. Nf3 {[%clk 01:31:25]} {[%emt 00:00:27]} Bc6 {[%emt
00:00:47]} 6. Bd3 {[%clk 01:30:28]} {[%emt 00:00:47]} Nd7 {[%emt 00:00:56]} 7.
Qe2 {[%emt 00:08:26]} Ngf6 {[%clk 01:30:22]} {[%emt 00:01:23]} 8. Ng3 {[%emt
00:10:08]} Be7 {[%clk 01:26:17]} {[%emt 00:01:06]} 9. O-O {[%emt 00:02:49]}
Bxf3 {[%clk 01:23:17]} {[%emt 00:01:38]} 10. Qxf3 {[%clk 01:16:56]} {[%emt
00:00:06]} c6 {[%clk 01:23:45]} {[%emt 00:00:03]} 11. Re1 {[%clk 01:16:18]}
{[%emt 00:01:07]} O-O {[%clk 01:23:54]} {[%emt 00:00:21]} 12. c3 {[%clk
01:15:59]} {[%emt 00:00:48]} Re8 {[%emt 00:08:09]} 13. Bc2 {[%emt 00:05:49]} a5
{[%emt 00:11:57]} 14. Bd2 {[%emt 00:04:42]} Qb6 {[%emt 00:00:22]} 15. Rab1
{[%emt 00:02:08]} Rad8 {[%clk 01:18:32]} {[%emt 00:00:24]} 16. a3 {[%emt
00:10:50]} Bf8 {[%clk 01:09:15]} {[%emt 00:00:44]} 17. h4 {[%emt 00:08:54]} e5
{[%emt 00:32:17]} 18. Nf5 {[%emt 00:03:04]} exd4 {[%emt 00:06:30]} 19. cxd4
{[%emt 00:04:33]} Rxe1+ {[%clk 00:44:45]} {[%emt 00:00:14]} 20. Bxe1 {[%emt
00:04:31]} g6 {[%emt 00:02:01]} 21. Qg3 {[%emt 00:03:54]} Re8 {[%emt 00:01:17]}
22. Bc3 {[%emt 00:06:33]} Ne4 {[%emt 00:01:40]} 23. Bxe4 {[%clk 00:17:55]}
{[%emt 00:00:16]} Rxe4 {[%emt 00:02:51]} 24. Qg5 {[%emt 00:08:27]} Qb5 {[%emt
00:04:41]} 25. Nh6+ {[%clk 00:10:55]} {[%emt 00:00:31]} Bxh6 {[%clk 00:24:07]}
{[%emt 00:01:00]} 26. Qxh6 {[%clk 00:11:24]} {[%emt 00:00:02]} Qd5 {[%emt
00:04:47]} 27. f3 {[%emt 00:01:31]} Re8 {[%clk 00:21:19]} {[%emt 00:01:33]} 28.
Qg5 {[%clk 00:06:11]} {[%emt 00:02:09]} f5 {[%clk 00:20:22]} {[%emt 00:01:28]}
29. h5 {[%clk 00:05:53]} {[%emt 00:00:48]} Kf7 {[%clk 00:19:40]} {[%emt
00:01:12]} 30. hxg6+ {[%clk 00:05:40]} {[%emt 00:00:43]} hxg6 {[%emt 00:00:43]}
31. Kf2 {[%clk 00:05:27]} {[%emt 00:00:01]} b5 {[%emt 00:02:32]} 32. Rh1 {[%emt
00:01:34]} Nf8 {[%emt 00:01:27]} 33. Rh4 {[%emt 00:05:08]} a4 {[%emt 00:01:20]}
34. Bb4 {[%emt 00:01:13]} Ne6 {[%clk 00:11:13]} {[%emt 00:00:59]} 35. Rh7+
{[%clk 00:04:00]} {[%emt 00:00:09]} Ng7 {[%emt 00:00:36]} 36. Kg3 {[%emt
00:03:31]} f4+ {[%emt 00:03:43]} 37. Kxf4 {[%clk 00:02:29]} {[%emt 00:01:21]}
Re2 {[%clk 00:04:56]} {[%emt 00:01:07]} 38. Qxd5+ {[%clk 00:02:11]} {[%emt
00:00:47]} cxd5 {[%emt 00:01:12]} 39. Bc3 {[%emt 00:02:42]} Kg8 {[%clk
00:03:24]} {[%emt 00:00:16]} 40. Rh2 {[%emt 00:01:52]} Nh5+ {[%emt 00:01:31]}
41. Kg5 {[%emt 00:06:35]} Kg7 {[%emt 00:10:35]} 42. Bb4 {[%emt 00:01:01]} Rxb2
{[%emt 00:00:26]} 43. Bd6 {[%emt 00:03:48]} Kf7 {[%emt 00:05:17]} 44. Kh6
{[%clk 00:10:22]} {[%emt 00:04:58]} Rc2 {[%emt 00:04:58]} 45. Be5 {[%emt
00:14:13]} b4 {[%clk 00:07:00]} {[%emt 00:00:10]} 46. axb4 {[%clk 00:08:29]}
{[%emt 00:00:05]} a3 {[%clk 00:07:28]} {[%emt 00:00:03]} 47. Rh1 {[%clk
00:07:56]} {[%emt 00:01:03]} a2 {[%clk 00:02:36]} {[%emt 00:05:22]} 48. g4
{[%clk 00:07:45]} {[%emt 00:00:41]} Rb2 {[%emt 00:02:12]} 49. Rc1 {[%clk
00:07:26]} Rb1 {[%clk 00:00:35]} {[%emt 00:01:37]} 50. Rc7+ {[%clk 00:07:52]}
{[%emt 00:00:05]} Ke6 {[%clk 00:00:35]} {[%emt 00:00:30]} 51. Rc6+ {[%clk
00:06:15]} {[%emt 00:02:06]} Kf7 {[%clk 00:01:00]} {[%emt 00:00:05]} 52. Rc7+
{[%clk 00:06:35]} {[%emt 00:00:10]} Ke6 {[%emt 00:01:18]} 53. Ra7 {[%clk
00:05:20]} {[%emt 00:01:01]} a1=Q {[%clk 00:01:02]} {[%emt 00:00:24]} 54. Rxa1
{[%clk 00:05:47]} {[%emt 00:00:02]} Rxa1 {[%clk 00:01:28]} {[%emt 00:00:05]} 55.
Kxg6 {[%clk 00:06:06]} {[%emt 00:00:10]} Ng3 {[%emt 00:00:51]} 56. Bxg3 {[%clk
00:06:31]} {[%emt 00:00:04]} Ra3 {[%clk 00:01:36]} {[%emt 00:00:03]} 57. b5
{[%clk 00:05:34]} {[%emt 00:01:26]} Rxf3 {[%clk 00:01:59]} {[%emt 00:00:08]} 58.
Bc7 {[%emt 00:00:55]} Kd7 {[%clk 00:01:04]} {[%emt 00:00:32]} 59. b6 {[%clk
00:06:23]} {[%emt 00:00:08]} Rd3 {[%clk 00:01:26]} {[%emt 00:00:08]} 60. Be5
{[%emt 00:01:33]} Rb3 {[%clk 00:00:40]} {[%emt 00:00:25]} 61. Kf7 {[%emt
00:00:39]} Rxb6 {[%clk 00:00:37]} {[%emt 00:00:15]} 62. g5 {[%clk 00:06:47]}
{[%emt 00:00:03]} Rb7 {[%clk 00:00:31]} {[%emt 00:00:37]} 63. g6 {[%clk
00:06:59]} {[%emt 00:00:17]} Kc6+ {[%clk 00:00:39]} {[%emt 00:00:22]} 64. Kf6
{[%emt 00:01:10]} Ra7 {[%clk 00:00:34]} {[%emt 00:00:12]} 65. g7 {[%clk
00:07:08]} {[%emt 00:00:04]} Ra8 {[%clk 00:01:03]} {[%emt 00:00:02]} 66. Kf7
{[%clk 00:07:31]} {[%emt 00:00:06]} Ra7+ {[%clk 00:01:29]} {[%emt 00:00:04]} 67.
Kg6 {[%clk 00:07:58]} {[%emt 00:00:04]} Ra8 {[%clk 00:00:38]} {[%emt 00:01:22]}
68. Kh7 {[%emt 00:00:12]} 1-0

[Event "elllobregat Open Chess TnmT- 2nd Edition 2021"]
[Site "Castelldefels, Spain"]
[Date "2021.12.07"]
[Round "8.7"]
[White "Suarez Uriel, Adrian"]
[Black "Sethuraman, S.P."]
[Result "0-1"]
[TimeControl "90min/40moves + 30min/end + 30sec increment per move starting from move 1"]
[WhiteTitle "IM"]
[BlackTitle "GM"]
[WhiteFideId "22230874"]
[BlackFideId "5021596"]
[WhiteElo "2343"]
[BlackElo "2620"]

1. e4 {[%clk 01:23:05]} {[%emt 00:01:24]} g6 {[%emt 00:00:14]} 2. d4 {[%clk
01:23:27]} {[%emt 00:00:03]} Bg7 {[%clk 01:31:20]} {[%emt 00:00:05]} 3. Nc3
{[%clk 01:23:52]} {[%emt 00:00:06]} d6 {[%clk 01:31:45]} {[%emt 00:00:05]} 4.
Be3 {[%clk 01:24:11]} {[%emt 00:00:10]} a6 {[%emt 00:01:33]} 5. g4 {[%clk
01:22:33]} {[%emt 00:00:40]} Nd7 {[%clk 01:32:33]} {[%emt 00:00:07]} 6. Bg2
{[%clk 01:20:11]} {[%emt 00:02:52]} h5 {[%emt 00:19:57]} 7. gxh5 {[%clk
01:00:01]} {[%emt 00:00:51]} Rxh5 {[%emt 00:02:15]} 8. f4 {[%clk 00:55:51]}
{[%emt 00:11:57]} Nb6 9. Qe2 {[%emt 00:17:38]} Nf6 {[%emt 00:09:34]} 10. Nf3
{[%emt 00:25:28]} d5 {[%emt 00:04:09]} 11. e5 {[%emt 00:00:09]} Ng4 {[%emt
00:01:08]} 12. O-O-O {[%emt 00:01:57]} Nxe3 {[%clk 00:41:13]} {[%emt 00:00:21]}
13. Qxe3 {[%emt 00:07:47]} c6 {[%emt 00:03:32]} 14. b3 {[%emt 00:02:22]} e6
{[%emt 00:03:48]} 15. h4 {[%clk 00:36:48]} {[%emt 00:00:04]} Qe7 {[%emt
00:05:36]} 16. Nb1 {[%emt 00:02:57]} Bd7 {[%emt 00:00:36]} 17. Ng5 {[%emt
00:02:51]} O-O-O {[%clk 00:27:42]} {[%emt 00:00:08]} 18. Bf3 {[%emt 00:04:20]}
Rh6 {[%emt 00:02:36]} 19. Qc3 {[%emt 00:01:56]} f6 {[%emt 00:17:43]} 20. exf6
{[%clk 00:12:24]} {[%emt 00:00:02]} Qxf6 {[%emt 00:03:23]} 21. Qc5 {[%emt
00:01:17]} Qxf4+ {[%clk 00:21:35]} {[%emt 00:00:53]} 22. Kb2 {[%emt 00:04:19]}
Rxh4 {[%clk 00:15:57]} {[%emt 00:01:51]} 23. Rxh4 {[%emt 00:00:16]} Qxh4 {[%emt
00:01:45]} 24. Nf7 {[%emt 00:01:25]} Rf8 {[%clk 00:15:33]} {[%emt 00:00:13]} 25.
Ne5 {[%emt 00:01:17]} Qd8 {[%emt 00:02:13]} 26. Bg4 {[%emt 00:01:08]} Bxe5
{[%clk 00:12:34]} {[%emt 00:00:10]} 27. dxe5 {[%emt 00:00:19]} Rf4 {[%emt
00:00:37]} 28. Rg1 {[%emt 00:08:34]} Na8 {[%emt 00:08:15]} 29. Rg2 {[%emt
00:01:38]} Qh8 {[%emt 00:00:26]} 30. Qd6 {[%emt 00:00:09]} Nc7 {[%clk
00:04:16]} {[%emt 00:00:11]} 31. Nc3 {[%emt 00:00:23]} Ne8 {[%clk 00:04:21]}
{[%emt 00:00:08]} 32. Qc5 {[%emt 00:01:12]} Qxe5 {[%emt 00:00:09]} 33. Re2
{[%emt 00:01:24]} Qf6 {[%emt 00:00:52]} 34. Bh3 {[%emt 00:00:07]} Rf3 {[%emt
00:00:07]} 35. Bg2 {[%emt 00:00:44]} b6 {[%emt 00:00:34]} 36. Qb4 {[%clk
00:01:18]} {[%emt 00:00:10]} a5 {[%clk 00:03:54]} {[%emt 00:00:14]} 37. Qxb6
{[%emt 00:00:24]} Qxc3+ {[%clk 00:04:02]} {[%emt 00:00:06]} 38. Kb1 {[%emt
00:00:35]} Rf4 {[%emt 00:00:34]} 0-1

[Event "elllobregat Open Chess TnmT- 2nd Edition 2021"]
[Site "Castelldefels, Spain"]
[Date "2021.12.07"]
[Round "8.8"]
[White "Yuffa, Daniil"]
[Black "Pantzar, Milton"]
[Result "1-0"]
[TimeControl "90min/40moves + 30min/end + 30sec increment per move starting from move 1"]
[WhiteTitle "GM"]
[BlackTitle "IM"]
[WhiteFideId "24131423"]
[BlackFideId "1721003"]
[WhiteElo "2567"]
[BlackElo "2441"]

1. e4 {[%clk 01:28:28]} {[%emt 00:02:30]} c6 {[%clk 01:30:51]} {[%emt
00:00:11]} 2. d4 {[%clk 01:28:52]} {[%emt 00:00:06]} d5 {[%clk 01:31:13]}
{[%emt 00:00:08]} 3. e5 {[%clk 01:29:19]} {[%emt 00:00:04]} c5 {[%clk
01:30:42]} {[%emt 00:01:01]} 4. Nf3 {[%clk 01:29:36]} {[%emt 00:00:14]} cxd4
{[%clk 01:30:43]} {[%emt 00:00:29]} 5. Qxd4 {[%clk 01:29:46]} {[%emt 00:00:20]}
Nc6 {[%clk 01:30:54]} {[%emt 00:00:19]} 6. Qf4 {[%clk 01:30:08]} {[%emt
00:00:07]} e6 {[%clk 01:23:59]} {[%emt 00:07:26]} 7. Nc3 {[%clk 01:29:11]}
{[%emt 00:01:27]} Nge7 {[%clk 01:20:21]} {[%emt 00:04:07]} 8. Bd3 {[%clk
01:29:34]} {[%emt 00:00:07]} Ng6 {[%clk 01:07:21]} {[%emt 00:13:30]} 9. Qg3
{[%clk 01:29:55]} {[%emt 00:00:09]} Nb4 {[%clk 01:03:53]} {[%emt 00:03:58]} 10.
h4 {[%clk 01:30:16]} {[%emt 00:00:09]} Nxd3+ {[%clk 00:57:22]} {[%emt
00:07:01]} 11. cxd3 {[%clk 01:30:41]} {[%emt 00:00:05]} h6 {[%clk 00:57:22]}
{[%emt 00:00:30]} 12. O-O {[%clk 01:26:54]} {[%emt 00:04:17]} Ne7 {[%clk
00:50:40]} {[%emt 00:07:13]} 13. Nd4 {[%clk 01:24:50]} {[%emt 00:02:34]} Nc6
{[%clk 00:34:26]} {[%emt 00:16:44]} 14. Be3 {[%clk 01:14:10]} {[%emt 00:11:10]}
Nxd4 {[%clk 00:33:08]} {[%emt 00:01:48]} 15. Bxd4 {[%clk 01:14:37]} {[%emt
00:00:03]} Bd7 {[%clk 00:33:23]} {[%emt 00:00:14]} 16. a4 {[%clk 01:08:43]}
{[%emt 00:06:24]} g6 {[%clk 00:23:12]} {[%emt 00:10:42]} 17. Nxd5 {[%clk
01:04:03]} {[%emt 00:05:10]} Bg7 {[%clk 00:23:26]} {[%emt 00:00:16]} 18. Nc3
{[%clk 01:00:20]} {[%emt 00:04:13]} O-O {[%clk 00:21:21]} {[%emt 00:02:34]} 19.
Bc5 {[%clk 00:59:14]} {[%emt 00:01:36]} Re8 {[%clk 00:21:10]} {[%emt 00:00:41]}
20. Ne4 {[%clk 00:57:01]} {[%emt 00:02:44]} Bc6 {[%clk 00:18:16]} {[%emt
00:03:24]} 21. Nd6 {[%clk 00:56:49]} {[%emt 00:00:42]} Re7 {[%clk 00:18:31]}
{[%emt 00:00:15]} 22. a5 {[%clk 00:55:34]} {[%emt 00:01:45]} Rd7 {[%clk
00:16:58]} {[%emt 00:02:02]} 23. d4 {[%clk 00:53:55]} {[%emt 00:02:10]} Kh7
{[%clk 00:13:02]} {[%emt 00:04:26]} 24. Rfe1 {[%clk 00:52:48]} {[%emt
00:01:37]} Bd5 {[%clk 00:12:54]} {[%emt 00:00:38]} 25. Nb5 {[%clk 00:47:13]}
{[%emt 00:06:05]} b6 {[%clk 00:10:33]} {[%emt 00:02:51]} 26. axb6 {[%clk
00:47:27]} {[%emt 00:00:16]} axb6 {[%clk 00:10:57]} {[%emt 00:00:06]} 27. Bd6
{[%clk 00:46:40]} {[%emt 00:01:17]} Ra5 {[%clk 00:07:46]} {[%emt 00:03:41]} 28.
Nc3 {[%clk 00:44:59]} {[%emt 00:02:11]} Qa8 {[%clk 00:06:00]} {[%emt 00:02:15]}
29. Rac1 {[%clk 00:43:31]} {[%emt 00:01:57]} Rda7 {[%clk 00:04:05]} {[%emt
00:02:26]} 30. Kh2 {[%clk 00:42:14]} {[%emt 00:01:47]} Rd7 {[%clk 00:03:05]}
{[%emt 00:01:30]} 31. Re3 {[%clk 00:40:07]} {[%emt 00:02:36]} Bb7 {[%clk
00:03:19]} {[%emt 00:00:16]} 32. Ne2 {[%clk 00:38:10]} {[%emt 00:02:27]} Ra1
{[%clk 00:02:51]} {[%emt 00:00:58]} 33. Ra3 {[%clk 00:33:05]} {[%emt 00:05:35]}
Rxa3 {[%clk 00:03:14]} {[%emt 00:00:07]} 34. bxa3 {[%clk 00:33:30]} {[%emt
00:00:06]} Qa5 {[%clk 00:01:48]} {[%emt 00:01:55]} 35. Rc3 {[%clk 00:30:13]}
{[%emt 00:03:47]} Qb5 {[%clk 00:01:52]} {[%emt 00:00:26]} 36. Nf4 {[%clk
00:29:04]} {[%emt 00:01:39]} Qb1 {[%clk 00:01:44]} {[%emt 00:00:39]} 37. h5
{[%clk 00:26:20]} {[%emt 00:03:14]} Qf5 {[%clk 00:01:55]} {[%emt 00:00:19]} 38.
hxg6+ {[%clk 00:25:24]} {[%emt 00:01:26]} fxg6 {[%clk 00:02:23]} {[%emt
00:00:02]} 39. Rb3 {[%clk 00:24:22]} {[%emt 00:01:32]} g5 {[%clk 00:01:02]}
{[%emt 00:01:50]} 40. Nh5 {[%clk 00:53:12]} {[%emt 00:01:39]} g4 {[%clk
00:30:34]} {[%emt 00:00:59]} 41. Qh4 {[%clk 00:42:25]} {[%emt 00:11:17]} Rf7
{[%clk 00:21:34]} {[%emt 00:09:30]} 42. Rg3 {[%clk 00:36:00]} {[%emt 00:06:54]}
Qg5 {[%clk 00:13:49]} {[%emt 00:08:13]} 43. Qxg4 {[%clk 00:35:28]} {[%emt
00:01:04]} Qxg4 {[%clk 00:13:47]} {[%emt 00:00:32]} 44. Rxg4 {[%clk 00:35:53]}
{[%emt 00:00:05]} Bd5 {[%clk 00:13:59]} {[%emt 00:00:18]} 45. Nf4 {[%clk
00:31:49]} {[%emt 00:04:34]} Bc4 {[%clk 00:13:34]} {[%emt 00:00:55]} 46. d5
{[%clk 00:30:20]} {[%emt 00:01:58]} Bxd5 {[%clk 00:08:15]} {[%emt 00:05:50]} 47.
Nxd5 {[%clk 00:30:44]} {[%emt 00:00:05]} exd5 {[%clk 00:08:39]} {[%emt
00:00:05]} 48. Kg3 {[%clk 00:30:48]} {[%emt 00:00:26]} Rd7 {[%clk 00:07:26]}
{[%emt 00:01:43]} 49. Kf3 {[%clk 00:29:14]} {[%emt 00:02:04]} h5 {[%clk
00:07:18]} {[%emt 00:00:38]} 50. Rb4 {[%clk 00:28:32]} {[%emt 00:01:12]} Kg6
{[%clk 00:07:35]} {[%emt 00:00:13]} 51. Ke3 {[%clk 00:26:48]} {[%emt 00:02:15]}
Kf5 {[%clk 00:07:33]} {[%emt 00:00:32]} 52. Rh4 {[%clk 00:25:16]} {[%emt
00:02:01]} Bxe5 {[%clk 00:04:48]} {[%emt 00:03:15]} 53. Rxh5+ {[%clk 00:25:31]}
{[%emt 00:00:17]} Kg6 {[%clk 00:05:14]} {[%emt 00:00:03]} 54. Rxe5 {[%clk
00:25:55]} {[%emt 00:00:05]} Rxd6 {[%clk 00:05:42]} {[%emt 00:00:03]} 55. Kd4
{[%clk 00:23:49]} {[%emt 00:02:36]} Rc6 {[%clk 00:04:38]} {[%emt 00:01:34]} 56.
Kxd5 {[%clk 00:22:21]} {[%emt 00:01:58]} Rc2 {[%clk 00:04:29]} {[%emt
00:00:39]} 57. f4 {[%clk 00:22:25]} {[%emt 00:00:26]} Ra2 {[%clk 00:03:29]}
{[%emt 00:01:30]} 58. g4 {[%clk 00:22:32]} {[%emt 00:00:23]} Rxa3 {[%clk
00:03:35]} {[%emt 00:00:24]} 59. Re6+ {[%clk 00:22:14]} {[%emt 00:00:47]} Kf7
{[%clk 00:03:57]} {[%emt 00:00:09]} 60. Rxb6 {[%clk 00:21:17]} {[%emt
00:01:28]} Ra5+ {[%clk 00:03:42]} {[%emt 00:00:45]} 61. Ke4 {[%clk 00:21:14]}
{[%emt 00:00:32]} Ra4+ {[%clk 00:04:08]} {[%emt 00:00:04]} 62. Kf3 {[%clk
00:21:38]} {[%emt 00:00:06]} Ra3+ {[%clk 00:04:36]} {[%emt 00:00:03]} 63. Kf2
{[%clk 00:22:04]} {[%emt 00:00:03]} Rc3 {[%clk 00:05:00]} {[%emt 00:00:07]} 64.
Rb5 {[%clk 00:21:17]} {[%emt 00:01:16]} Kf6 {[%clk 00:05:16]} {[%emt 00:00:14]}
65. Rf5+ {[%clk 00:21:42]} {[%emt 00:00:04]} Kg6 {[%clk 00:05:31]} {[%emt
00:00:16]} 66. Re5 {[%emt 00:01:28]} 1-0